bitfinex-derivatives/quotes_ETHF0:USTF0_20240923
["timestamp","ask_amount","ask_price","bid_price","bid_amount"]
[1727092472759,0.37771,2647.6,2647.5,0.3786]
[1727092474252,0.37771,2647.7,2647.5,0.3786]
[1727092476955,0.94422,2647.8,2647.2,1.14956]
[1727092477156,0.37773,2647.5,2647.3,0.37776]
[1727092477558,0.3902,2647.6,2647.2,0.75367]
[1727092477559,0.37775,2647.4,2647.2,0.75367]
[1727092478068,0.37775,2647.4,2647.2,0.75366]
[1727092480061,0.37775,2647.4,2647.2,1.11766]
[1727092480662,0.37774,2647.4,2647.2,1.11766]
[1727092481361,0.37774,2647.5,2647.3,0.37776]
[1727092484661,1.70371,2647.9,2647.6,0.37771]
[1727092484867,0.37769,2647.8,2647.7,0.7548]
[1727092488858,0.37771,2647.7,2647.4,0.37773]
[1727092489055,0.37771,2647.7,2647.1,3.2078]
[1727092489056,0.37771,2647.7,2647.5,0.76742]
[1727092489865,0.3777,2647.8,2647.5,0.76742]
[1727092490060,0.37771,2647.7,2647.5,0.76742]
[1727092491270,0.37771,2647.7,2647.5,0.3897]
[1727092491964,0.37771,2647.7,2647.5,0.76743]
[1727092492368,0.37771,2647.7,2647.6,0.3703]
[1727092495760,0.37771,2647.6,2647.5,0.3897]
[1727092496264,1.32771,2647.6,2647.5,0.3897]
[1727092496973,0.37773,2647.5,2647.4,3.2078]
[1727092497160,0.76183,2647.5,2647.4,3.2078]
[1727092499263,0.37773,2647.5,2647.4,3.2078]
[1727092499963,0.37773,2647.5,2647.3,0.37776]
[1727092500266,0.37775,2647.4,2647.2,0.3736]
[1727092500471,0.37775,2647.4,2647.2,1.3606614]
[1727092500663,0.37775,2647.4,2647.2,0.3736]
[1727092500870,0.37776,2647.3,2647.2,0.3736]
[1727092501065,0.37777,2647.2,2647.1,0.3679]
[1727092503074,0.94446,2647.2,2646.9,1.3682614]
[1727092503276,0.94446,2647.2,2646.9,1.7661614]
[1727092503477,2.06,2647.1,2646.9,1.7661614]
[1727092503876,0.3778,2647.0,2646.9,1.7661614]
[1727092504275,0.37781,2646.9,2646.8,0.9870614]
[1727092504484,0.37781,2646.9,2646.7,1.47792773]
[1727092504485,2.43783,2646.8,2646.7,1.47792773]
[1727092504674,2.82873,2646.8,2646.7,0.98851686]
[1727092505680,6.60713,2646.8,2646.7,0.98851686]
[1727092505879,6.99423,2646.8,2646.7,0.98851686]
[1727092506074,6.99423,2646.8,2646.6,0.98851686]
[1727092506279,2.838,2646.8,2646.7,0.37784]
[1727092506469,0.37783,2646.8,2646.7,0.98851686]
[1727092507483,2.43782,2646.9,2646.6,1.36636686]
[1727092508179,2.43782,2646.9,2646.5,2.26162773]
[1727092508180,0.37781,2647.0,2646.7,1.36635686]
[1727092508486,0.37781,2647.0,2646.8,0.379]
[1727092508675,0.37781,2646.9,2646.8,0.379]
[1727092509083,2.06,2647.1,2646.8,0.379]
[1727092509284,2.4378,2647.1,2646.8,0.75682]
[1727092509685,2.4378,2647.1,2646.8,1.74533686]
[1727092510882,0.37778,2647.2,2646.9,0.37781]
[1727092511088,0.37778,2647.2,2647.0,0.3972]
[1727092511277,0.37778,2647.2,2647.0,0.775]
[1727092511493,0.76847,2647.3,2647.0,0.775]
[1727092511675,0.37777,2647.2,2647.0,0.775]
[1727092512075,0.37777,2647.2,2647.0,0.3972]
[1727092512484,0.37777,2647.2,2647.0,0.775]
[1727092514684,0.37777,2647.2,2647.0,0.3972]
[1727092514882,0.3907,2647.3,2647.0,0.3972]
[1727092514883,0.37779,2647.1,2647.0,0.3972]
[1727092515279,0.37779,2647.1,2646.8,1.36751686]
[1727092515591,0.37779,2647.1,2646.7,1.47792773]
[1727092515592,0.37783,2646.8,2646.6,4.19631686]
[1727092515886,0.3927,2646.7,2646.6,4.19631686]
[1727092516288,0.3927,2646.7,2646.6,1.36637686]
[1727092516481,0.759,2646.8,2646.7,0.37784]
[1727092516680,0.108,2646.8,2646.6,1.36636686]
[1727092516879,0.108,2646.8,2646.7,1.36635686]
[1727092523689,0.48583,2646.8,2646.7,0.98851686]
[1727092524986,0.37784,2646.7,2646.6,0.98851686]
[1727092525380,0.108,2646.8,2646.6,0.98851686]
[1727092525381,0.48584,2646.8,2646.6,0.98851686]
[1727092525585,0.48584,2646.8,2646.6,1.36636686]
[1727092525884,0.108,2646.8,2646.7,0.37784]
[1727092527091,0.108,2646.8,2646.7,1.36635686]
[1727092529093,0.37782,2646.9,2646.8,0.37783]
[1727092530791,0.37782,2646.9,2646.8,1.71515473]
[1727092530981,0.37781,2647.0,2646.9,0.37781]
[1727092531188,1.1545,2647.1,2646.9,1.36499665]
[1727092531390,0.3778,2647.0,2646.9,1.72699665]
[1727092531687,0.3778,2647.0,2646.9,0.73981]
[1727092531892,1.53229,2647.1,2647.0,0.3778]
[1727092532097,1.53229,2647.1,2647.0,1.36501207]
[1727092533483,0.37778,2647.2,2647.1,0.37779]
[1727092534297,1.32778,2647.2,2647.1,0.37779]
[1727092535294,0.37773,2647.5,2647.3,0.37775]
[1727092535792,0.95,2647.5,2647.4,1.70705882]
[1727092536193,0.95,2647.5,2647.4,1.32931882]
[1727092536595,1.32773,2647.5,2647.4,1.32931882]
[1727092538393,0.37773,2647.5,2647.3,0.37775]
[1727092538796,2.81052,2647.6,2647.3,0.37775]
[1727092539102,2.81052,2647.6,2647.5,0.98710295]
[1727092544000,2.4328,2647.6,2647.5,0.98710295]
[1727092544202,2.4328,2647.6,2647.5,0.98340295]
[1727092544795,2.81051,2647.6,2647.5,0.98340295]
[1727092545401,2.81051,2647.6,2647.4,0.75334]
[1727092545608,2.4328,2647.6,2647.4,0.75334]
[1727092545815,2.81052,2647.6,2647.4,0.3756]
[1727092546116,2.81052,2647.6,2647.4,0.7389]
[1727092546617,0.37773,2647.5,2647.4,0.7389]
[1727092546810,2.81052,2647.6,2647.4,0.7389]
[1727092547011,0.37773,2647.5,2647.4,0.7389]
[1727092547314,0.37773,2647.5,2647.4,0.3756]
[1727092548406,2.81052,2647.6,2647.4,0.3756]
[1727092549615,2.81052,2647.6,2647.4,0.75334]
[1727092550813,0.37773,2647.5,2647.4,0.3756]
[1727092551014,1.11333,2647.5,2647.2,2.22031399]
[1727092551214,1.11333,2647.5,2647.2,2.21991399]
[1727092551420,0.37775,2647.4,2647.2,0.73956]
[1727092552120,0.37775,2647.4,2647.2,2.21991399]
[1727092552421,0.37775,2647.4,2647.2,1.84215399]
[1727092552712,0.37775,2647.4,2647.2,0.3618]
[1727092552911,0.7356,2647.5,2647.2,0.3618]
[1727092553108,0.37774,2647.4,2647.2,0.3618]
[1727092553339,1.11333,2647.5,2647.2,0.3618]
[1727092553516,1.11333,2647.5,2647.2,0.73956]
[1727092553711,1.11333,2647.5,2647.2,0.3618]
[1727092553917,0.7356,2647.5,2647.2,0.73956]
[1727092554119,1.11334,2647.5,2647.2,0.73956]
[1727092554316,0.37775,2647.4,2647.2,0.3618]
[1727092554706,0.37774,2647.4,2647.2,0.73957]
[1727092555106,0.37776,2647.3,2647.2,0.3618]
[1727092555517,0.37775,2647.4,2647.2,0.3618]
[1727092555922,0.37775,2647.4,2647.2,0.73957]
[1727092556227,0.37775,2647.4,2647.2,0.3618]
[1727092556722,0.37776,2647.3,2647.2,0.3618]
[1727092557114,2.43776,2647.3,2647.2,0.3618]
[1727092558321,0.37777,2647.2,2646.9,0.3778]
[1727092558517,0.376,2647.1,2646.9,0.7592]
[1727092558723,0.376,2647.1,2647.0,0.3778]
[1727092560417,1.326,2647.1,2647.0,3.18982617]
[1727092561225,3.2078,2647.3,2647.2,0.37777]
[1727092561530,1.32774,2647.4,2647.2,0.37777]
[1727092561827,1.32775,2647.4,2647.2,0.37777]
[1727092562418,0.37776,2647.3,2647.1,1.85813399]
[1727092562617,0.95,2647.2,2647.1,0.37778]
[1727092562820,0.95,2647.2,2647.1,1.331724]
[1727092563020,1.32777,2647.2,2646.9,2.23955399]
[1727092563222,1.3257,2647.1,2647.0,1.70944746]
[1727092563416,1.3257,2647.1,2647.0,0.3778]
[1727092563724,0.95,2647.1,2647.0,1.70935948]
[1727092563924,0.95,2647.1,2647.0,1.70936795]
[1727092565127,1.32779,2647.1,2646.9,2.23956399]
[1727092565424,7.9354,2647.1,2646.7,1.48035399]
[1727092565624,0.37784,2646.8,2646.5,1.87725399]
[1727092565829,1.13654,2646.7,2646.6,1.33209842]
[1727092566031,1.13654,2646.7,2646.5,1.87725399]
[1727092566533,0.95,2646.6,2646.5,0.3969]
[1727092566726,0.95,2646.6,2646.5,1.72871973]
[1727092567225,1.7087,2646.7,2646.5,1.72871973]
[1727092567428,0.95,2646.9,2646.7,0.37784]
[1727092567624,0.95,2646.9,2646.8,0.75203]
[1727092568022,4.35089,2647.1,2646.8,0.3742]
[1727092568023,3.9731,2647.1,2646.8,0.3742]
[1727092568222,5.077,2647.3,2646.9,0.3699]
[1727092568527,0.95,2647.3,2647.1,0.37778]
[1727092568925,0.95,2647.3,2647.0,0.3969]
[1727092569125,0.95,2647.3,2647.2,0.37777]
[1727092569728,0.95,2647.3,2647.0,1.87725399]
[1727092569729,0.95,2647.4,2647.3,0.37775]
[1727092570134,1.32772,2647.6,2647.4,0.37774]
[1727092570432,0.37772,2647.6,2647.5,0.3692]
[1727092570830,4.15452,2647.6,2647.5,0.3692]
[1727092571229,0.37772,2647.6,2647.5,0.3692]
[1727092571430,3.58551,2647.7,2647.5,0.3692]
[1727092571734,3.9479,2648.6,2647.7,0.3777]
[1727092571735,0.37757,2648.6,2647.7,0.3777]
[1727092571930,0.37757,2648.6,2647.6,9.25702792]
[1727092571931,0.3961,2648.4,2648.3,1.4799257]
[1727092572128,2.4561,2648.4,2648.0,4.6877257]
[1727092572326,2.4561,2648.4,2648.0,3.2078]
[1727092573534,2.4561,2648.4,2647.8,1.8576057]
[1727092573728,2.4561,2648.4,2647.9,1.34729791]
[1727092574035,2.4561,2648.4,2648.0,1.34727171]
[1727092574223,2.4561,2648.4,2647.9,0.37767]
[1727092574739,2.4561,2648.4,2648.0,1.34703784]
[1727092575029,2.4561,2648.4,2647.9,1.8575957]
[1727092575230,2.4561,2648.4,2648.0,1.34703665]
[1727092575433,2.4561,2648.4,2647.9,0.37767]
[1727092576636,2.4561,2648.4,2648.0,0.37766]
[1727092576936,2.4561,2648.4,2647.9,0.37767]
[1727092578736,2.06,2648.1,2647.9,0.37767]
[1727092579729,2.06,2648.1,2648.0,3.2078]
[1727092580629,2.06,2648.1,2647.9,0.37767]
[1727092581438,2.06,2648.1,2647.7,3.2078]
[1727092581630,2.06,2648.1,2647.9,0.37766]
[1727092583239,2.21257796,2648.1,2647.9,0.37766]
[1727092589241,2.21257796,2648.1,2647.7,3.2078]
[1727092589437,2.06,2647.9,2647.8,0.37768]
[1727092590436,0.95,2647.9,2647.8,0.37768]
[1727092591638,0.95,2647.9,2647.7,3.98279]
[1727092592342,0.95,2647.9,2647.7,3.6051]
[1727092592644,1.32769,2647.8,2647.7,3.2078]
[1727092593035,5.10449,2647.8,2647.7,3.2078]
[1727092593234,0.37771,2647.7,2647.4,3.2078]
[1727092593429,4.7268,2647.8,2647.4,3.2078]
[1727092593430,0.95,2647.5,2647.4,3.2078]
[1727092593635,0.95,2647.5,2647.4,3.58554]
[1727092600850,0.95,2647.5,2647.4,0.37774]
[1727092601243,0.95,2647.5,2647.4,3.58554]
[1727092602550,1.1266,2647.6,2647.5,0.37773]
[1727092602751,2.0766,2647.6,2647.5,0.37773]
[1727092606954,2.0766,2647.6,2647.5,3.58553]
[1727092607950,2.0766,2647.6,2647.5,3.2078]
[1727092609048,2.0766,2647.6,2647.5,3.58553]
[1727092609252,2.0766,2647.6,2647.5,3.2078]
[1727092609563,2.45431,2647.6,2647.5,3.2078]
[1727092610053,2.45431,2647.6,2647.3,0.37775]
[1727092610253,0.95,2647.4,2647.3,0.37775]
[1727092611148,1.1266,2647.6,2647.4,0.37774]
[1727092611354,0.95,2647.5,2647.4,0.37774]
[1727092611555,0.95,2647.5,2647.4,3.58554]
[1727092611753,0.95,2647.5,2647.4,3.2078]
[1727092614852,0.95,2647.5,2647.4,3.58554]
[1727092616875,1.1266,2647.6,2647.5,0.37773]
[1727092617069,2.0766,2647.6,2647.5,0.37773]
[1727092619365,2.45431,2647.6,2647.5,0.37773]
[1727092620569,2.0766,2647.6,2647.5,0.37773]
[1727092624479,2.1846,2647.6,2647.5,0.37773]
[1727092626794,0.94433,2647.5,2646.8,5.6322957]
[1727092626998,0.95,2646.9,2646.5,4.7757257]
[1727092627189,0.94451,2647.0,2646.4,3.2078]
[1727092627190,0.95,2646.6,2646.4,3.2078]
[1727092627389,0.94465,2646.6,2646.1,4.31712]
[1727092627694,0.95,2646.3,2646.1,3.95522]
[1727092627887,0.95,2646.3,2646.2,1.7160977]
[1727092628093,1.71,2646.3,2646.2,1.7160977]
[1727092628483,1.71,2646.3,2646.2,0.37791]
[1727092629292,1.71,2646.3,2646.1,3.5773]
[1727092629293,2.08791,2646.3,2646.1,3.5773]
[1727092629590,1.71,2646.3,2646.1,3.58572]
[1727092630692,2.0879,2646.3,2646.1,3.58572]
[1727092631396,2.0879,2646.3,2646.1,3.2078]
[1727092631697,2.0879,2646.3,2646.1,3.58573]
[1727092631885,2.0879,2646.3,2646.1,3.2078]
[1727092633100,1.71,2646.3,2646.1,3.58572]
[1727092633400,2.0879,2646.3,2646.1,3.2078]
[1727092635304,0.77021,2646.2,2646.1,3.2078]
[1727092635690,0.3923,2646.2,2646.1,3.2078]
[1727092636603,0.77021,2646.2,2646.1,3.2078]
[1727092636801,0.3923,2646.2,2646.1,3.2078]
[1727092637096,0.77021,2646.2,2646.1,3.2078]
[1727092637495,0.3923,2646.2,2646.1,3.2078]
[1727092638099,0.77021,2646.2,2646.1,3.2078]
[1727092638409,0.3923,2646.2,2646.1,3.2078]
[1727092639506,0.76,2646.3,2646.1,3.58573]
[1727092639804,1.71,2646.3,2646.1,3.58573]
[1727092640004,2.08791,2646.3,2646.1,3.58573]
[1727092640205,0.76,2646.3,2646.1,3.58573]
[1727092640498,2.0879,2646.3,2646.1,3.58572]
[1727092640702,1.71,2646.3,2646.1,3.58572]
[1727092641102,2.0879,2646.3,2646.1,3.58572]
[1727092641698,2.0879,2646.3,2646.1,3.58573]
[1727092641699,2.08791,2646.3,2646.1,3.58573]
[1727092647308,1.71,2646.3,2646.2,0.37791]
[1727092647509,1.3233,2646.3,2646.2,0.37791]
[1727092647708,1.7012,2646.3,2646.1,3.58572]
[1727092648807,1.7012,2646.3,2646.2,0.37791]
[1727092648997,1.3233,2646.3,2646.2,0.37791]
[1727092649202,1.7012,2646.3,2646.2,0.37791]
[1727092649509,1.7012,2646.3,2646.1,3.58572]
[1727092651005,0.108,2646.2,2646.1,3.58572]
[1727092651716,0.48591,2646.2,2646.1,3.58572]
[1727092651900,0.48591,2646.2,2646.1,3.2078]
[1727092652213,0.37793,2646.1,2646.0,0.3749]
[1727092652509,0.37795,2646.0,2645.8,3.58576]
[1727092652702,0.95,2645.9,2645.8,3.58576]
[1727092654111,0.95,2645.9,2645.8,0.37796]
[1727092654810,1.3108,2646.0,2645.9,0.37796]
[1727092655004,1.68874,2646.0,2645.9,0.37796]
[1727092655708,1.3108,2646.0,2645.9,0.37796]
[1727092656405,1.3108,2646.0,2645.7,3.9565]
[1727092656406,0.37794,2646.1,2646.0,0.37794]
[1727092656605,0.37794,2646.1,2646.0,3.58574]
[1727092657812,0.108,2646.2,2646.1,0.37793]
[1727092658012,0.108,2646.2,2646.1,4.15713]
[1727092658203,0.108,2646.2,2646.1,4.54983]
[1727092659108,0.48591,2646.2,2646.1,4.54983]
[1727092659506,0.108,2646.2,2646.1,4.54983]
[1727092661013,0.48591,2646.2,2646.1,4.54983]
[1727092666110,0.37793,2646.1,2646.0,3.2078]
[1727092666516,1.32793,2646.1,2646.0,3.2078]
[1727092668406,0.37796,2645.9,2645.8,0.3906]
[1727092668714,1.32796,2645.9,2645.8,0.3906]
[1727092669217,1.32796,2645.9,2645.8,0.76857]
[1727092669717,0.95,2645.9,2645.8,0.76857]
[1727092670416,1.32796,2645.9,2645.8,0.3906]
[1727092670718,1.32796,2645.9,2645.8,0.76857]
[1727092671321,0.95,2645.9,2645.8,0.76857]
[1727092671520,2.50595,2646.0,2645.8,0.76857]
[1727092671820,2.50595,2646.0,2645.9,0.98608401]
[1727092672620,2.128,2646.0,2645.9,3.19580393]
[1727092672814,2.128,2646.0,2645.9,2.81784393]
[1727092672815,2.50594,2646.0,2645.9,2.81784393]
[1727092673013,2.50594,2646.0,2645.9,1.33791823]
[1727092673209,2.50594,2646.0,2645.9,2.49733008]
[1727092673818,2.50594,2646.0,2645.9,2.87529008]
[1727092674021,2.50594,2646.0,2645.9,2.87529002]
[1727092674417,2.50594,2646.0,2645.9,2.87529844]
[1727092674614,2.50594,2646.0,2645.9,1.71587823]
[1727092674809,2.128,2646.0,2645.9,2.87532751]
[1727092675016,2.128,2646.0,2645.9,2.30677715]
[1727092675318,0.37794,2646.1,2645.9,2.87529418]
[1727092675621,0.37794,2646.1,2646.0,2.49733418]
[1727092675811,0.76754,2646.1,2646.0,2.49733418]
[1727092677326,0.76754,2646.1,2646.0,1.33872372]
[1727092677627,0.76754,2646.1,2646.0,2.49832578]
[1727092678521,0.76754,2646.1,2646.0,5.70612578]
[1727092678522,1.71754,2646.1,2646.0,5.70612578]
[1727092678721,1.71754,2646.1,2646.0,7.18857468]
[1727092678925,1.71754,2646.1,2646.0,3.98077468]
[1727092680527,1.71754,2646.1,2646.0,7.18857468]
[1727092680727,1.71754,2646.1,2646.0,7.18863678]
[1727092680923,1.71754,2646.1,2646.0,6.02907877]
[1727092681128,1.71754,2646.1,2646.0,4.54662987]
[1727092682429,1.71754,2646.1,2646.0,4.19611647]
[1727092686421,1.71754,2646.1,2646.0,0.98831647]
[1727092687030,2.66237,2646.1,2646.0,0.98831647]
[1727092687330,0.94486,2646.0,2645.8,0.98831647]
[1727092687628,0.94486,2646.0,2645.7,0.98831647]
[1727092687629,0.37797,2645.8,2645.7,0.98831647]
[1727092687823,0.37799,2645.7,2645.6,0.98831647]
[1727092688020,2.08819,2645.7,2645.6,2.14819713]
[1727092688220,5.86819,2645.7,2645.6,2.82127067]
[1727092688424,6.81316,2645.7,2645.6,1.33882177]
[1727092688623,0.378,2645.6,2645.5,1.4824489]
[1727092688826,0.378,2645.6,2645.5,3.98065548]
[1727092689033,0.378,2645.6,2645.5,2.49820658]
[1727092689237,0.378,2645.6,2645.5,2.8209085]
[1727092689429,0.378,2645.6,2645.5,3.38942914]
[1727092689625,0.378,2645.6,2645.5,3.38942853]
[1727092689825,0.378,2645.6,2645.5,1.3384596]
[1727092690330,0.378,2645.6,2645.5,1.33815529]
[1727092690737,0.378,2645.6,2645.5,0.98777433]
[1727092690926,0.37801,2645.5,2645.4,0.98777433]
[1727092691126,1.70021,2645.5,2645.4,0.98777433]
[1727092692532,1.70021,2645.5,2645.2,5.0745489]
[1727092692533,0.37803,2645.4,2645.3,0.98777433]
[1727092692835,1.32803,2645.4,2645.3,0.98777433]
[1727092695642,0.95,2645.4,2645.3,0.98777433]
[1727092695840,1.32803,2645.4,2645.3,0.98777433]
[1727092696339,1.32803,2645.4,2645.2,4.95793433]
[1727092696340,0.95,2645.4,2645.2,4.95793433]
[1727092697041,0.95,2645.4,2645.2,4.95792433]
[1727092697741,0.95,2645.4,2645.3,0.37804]
[1727092697937,0.95,2645.4,2645.2,4.57987433]
[1727092698137,0.95,2645.4,2645.2,4.95792433]
[1727092698338,1.32803,2645.4,2645.2,4.95792433]
[1727092700637,1.32803,2645.4,2644.8,0.98777433]
[1727092700638,0.94519,2645.1,2644.8,0.98777433]
[1727092700840,0.37811,2644.8,2644.7,4.55547433]
[1727092701138,1.32811,2644.8,2644.7,4.55547433]
[1727092701339,1.3317,2644.8,2644.7,4.55547433]
[1727092701543,0.95,2644.8,2644.7,3.94583]
[1727092701743,0.95,2644.8,2644.7,3.5677]
[1727092701952,1.32811,2644.8,2644.7,3.5677]
[1727092702247,0.95,2644.8,2644.7,3.94583]
[1727092702844,1.32811,2644.9,2644.7,3.94583]
[1727092703234,1.32811,2644.9,2644.7,4.93360433]
[1727092703543,1.32811,2644.9,2644.7,3.5677]
[1727092703544,0.37811,2644.8,2644.7,3.5677]
[1727092703747,1.32809,2645.0,2644.8,3.7808]
[1727092703940,1.32809,2645.0,2644.8,0.3781]
[1727092704137,1.32809,2645.0,2644.7,4.55547433]
[1727092704434,1.32809,2645.0,2644.9,0.3781]
[1727092704638,0.95,2645.0,2644.9,0.3781]
[1727092705532,0.37806,2645.2,2645.1,0.37807]
[1727092705734,0.37806,2645.2,2645.1,3.58587]
[1727092705932,0.95,2645.3,2645.2,0.37804]
[1727092706339,1.32804,2645.3,2645.2,0.37804]
[1727092706735,1.32804,2645.3,2645.1,3.58586]
[1727092706931,1.32806,2645.2,2645.1,3.58586]
[1727092707236,0.95,2645.2,2645.1,3.58586]
[1727092712743,0.108,2645.4,2645.3,0.37804]
[1727092714156,0.108,2645.4,2645.3,5.10804]
[1727092717053,0.37799,2645.7,2645.6,0.378]
[1727092717255,0.37799,2645.7,2645.6,3.5858]
[1727092718051,0.37799,2645.7,2645.6,3.2078]
[1727092719354,5.10296,2645.7,2645.6,3.2078]
[1727092723858,5.25979285,2645.7,2645.6,3.2078]
[1727092726554,0.37802,2645.5,2645.3,1.75371433]
[1727092726767,1.3472,2645.4,2645.3,1.75371433]
[1727092726969,1.7368,2645.4,2645.3,1.75371433]
[1727092728057,1.7368,2645.4,2645.3,1.37567433]
[1727092728462,1.7368,2645.4,2645.3,1.75371433]
[1727092728963,1.7368,2645.4,2645.3,1.37567433]
[1727092729263,1.7368,2645.4,2645.3,1.75371433]
[1727092730660,1.7368,2645.4,2645.3,0.76594]
[1727092731368,1.8448,2645.4,2645.3,0.76594]
[1727092731562,1.8448,2645.4,2645.3,2.09889001]
[1727092731860,1.8448,2645.4,2645.3,2.09887259]
[1727092732659,1.8448,2645.4,2645.3,2.09912017]
[1727092733463,1.8448,2645.4,2645.3,0.76594]
[1727092734367,0.108,2645.4,2645.3,0.76594]
[1727092735861,0.108,2645.4,2645.3,1.75228462]
[1727092736266,0.108,2645.4,2645.3,0.76594]
[1727092736870,0.108,2645.4,2645.3,1.75228462]
[1727092737262,0.108,2645.4,2645.3,3.97374]
[1727092740466,0.108,2645.4,2645.3,6.78961824]
[1727092741063,0.108,2645.4,2645.3,6.78956529]
[1727092741368,0.48603,2645.4,2645.3,6.78956529]
[1727092741860,0.108,2645.4,2645.3,6.78956529]
[1727092742466,0.48603,2645.4,2645.3,5.30711639]
[1727092743168,0.108,2645.4,2645.3,5.30711639]
[1727092743573,0.37801,2645.5,2645.3,6.78956529]
[1727092743776,1.1718,2645.6,2645.4,1.33337639]
[1727092743976,1.5498,2645.6,2645.5,0.98606363]
[1727092747876,2.49481,2645.6,2645.5,0.98606363]
[1727092748077,0.37801,2645.5,2645.4,0.98606363]
[1727092749178,0.37801,2645.5,2645.3,5.4561889]
[1727092749569,0.37801,2645.5,2645.4,1.33329309]
[1727092750075,1.1718,2645.6,2645.4,2.81574199]
[1727092750271,0.37801,2645.5,2645.4,1.4824489]
[1727092750579,0.37801,2645.5,2645.4,2.8159744]
[1727092751367,0.37801,2645.5,2645.4,3.97496078]
[1727092754783,0.37801,2645.5,2645.4,3.97498086]
[1727092755285,0.37801,2645.5,2645.4,3.3849924]
[1727092755482,0.37801,2645.5,2645.4,3.97601703]
[1727092755671,0.37801,2645.5,2645.4,1.15900587]
[1727092756076,0.37801,2645.5,2645.4,3.2078]
[1727092757592,0.37801,2645.5,2645.4,4.19531487]
[1727092757885,0.37801,2645.5,2645.4,0.98751487]
[1727092758274,0.37801,2645.5,2645.4,4.19531487]
[1727092758686,0.37801,2645.5,2645.4,0.98751487]
[1727092758892,0.37801,2645.5,2645.4,4.19531487]
[1727092762586,1.1718,2645.6,2645.4,4.57333487]
[1727092762887,0.37801,2645.5,2645.4,4.19531487]
[1727092763088,0.37801,2645.5,2645.4,4.76369115]
[1727092763389,0.37801,2645.5,2645.4,5.35470019]
[1727092763585,0.37801,2645.5,2645.4,5.70214215]
[1727092765691,0.37801,2645.5,2645.4,5.70218843]
[1727092765886,0.37801,2645.5,2645.4,2.49438843]
[1727092766291,0.37801,2645.5,2645.4,5.70218843]
[1727092766490,0.37801,2645.5,2645.4,5.70225254]
[1727092767789,0.37801,2645.5,2645.4,6.08028254]
[1727092768385,0.37801,2645.5,2645.4,5.70225254]
[1727092769182,0.37801,2645.5,2645.4,4.54275683]
[1727092769386,0.37801,2645.5,2645.4,5.70309397]
[1727092769689,0.37801,2645.5,2645.4,6.88515518]
[1727092770092,0.37801,2645.5,2645.4,7.26318518]
[1727092770895,0.37801,2645.5,2645.4,4.05538518]
[1727092771285,0.37801,2645.5,2645.4,7.26318518]
[1727092771695,0.37801,2645.5,2645.4,4.05538518]
[1727092771897,0.37801,2645.5,2645.4,7.26318518]
[1727092772387,0.37801,2645.5,2645.4,6.08119644]
[1727092772588,0.37801,2645.5,2645.4,6.08118644]
[1727092772788,0.37801,2645.5,2645.4,4.92149968]
[1727092772995,0.37801,2645.5,2645.4,6.08121234]
[1727092773195,2.49981,2645.6,2645.5,0.37801]
[1727092773492,2.49981,2645.6,2645.5,1.36635456]
[1727092774091,0.37795,2646.0,2645.9,0.37795]
[1727092774285,6.58124,2646.1,2646.0,0.37794]
[1727092774489,1.1263,2646.1,2646.0,0.37794]
[1727092774792,0.3858,2646.1,2646.0,5.50476624]
[1727092775095,0.74131,2646.3,2646.0,6.63203381]
[1727092775293,0.699,2646.6,2646.5,0.37787]
[1727092775501,0.699,2646.6,2646.5,4.57145833]
[1727092775796,1.07686,2646.6,2646.5,4.76119104]
[1727092775993,1.07686,2646.6,2646.5,5.12319104]
[1727092776295,1.07686,2646.6,2646.5,4.55558833]
[1727092776598,1.07686,2646.6,2646.5,4.13739498]
[1727092776791,1.07686,2646.6,2646.5,3.5698]
[1727092778294,2.02686,2646.6,2646.5,3.5698]
[1727092780094,2.02686,2646.6,2646.5,0.362]
[1727092781099,2.02686,2646.6,2646.5,3.5698]
[1727092784102,1.649,2646.6,2646.5,3.94767]
[1727092784303,1.649,2646.6,2646.5,3.5698]
[1727092784601,2.02686,2646.6,2646.5,3.5698]
[1727092787399,2.02686,2646.6,2646.5,3.94767]
[1727092788596,0.699,2646.6,2646.5,8.67076]
[1727092788802,0.699,2646.6,2646.5,14.67076]
[1727092789002,0.699,2646.6,2646.5,15.42926]
[1727092789197,0.699,2646.6,2646.5,16.37395]
[1727092791401,0.699,2646.6,2646.5,15.42926]
[1727092792004,1.0769,2647.1,2647.0,0.3778]
[1727092792304,1.0769,2647.1,2647.0,3.5856]
[1727092793403,0.699,2647.1,2647.0,8.3132]
[1727092793604,0.699,2647.1,2647.0,16.02161]
[1727092793803,0.37772,2647.6,2647.4,0.37773]
[1727092794000,0.37772,2647.6,2647.5,3.97873]
[1727092794194,1.1332,2647.7,2647.6,0.37771]
[1727092794195,1.51091,2647.7,2647.6,0.37771]
[1727092794396,1.51091,2647.7,2647.5,3.97872]
[1727092794602,0.37771,2647.6,2647.5,3.601]
[1727092796995,0.37771,2647.6,2647.5,3.2078]
[1727092797699,1.51091,2647.7,2647.5,3.58553]
[1727092798400,0.37771,2647.6,2647.5,3.58553]
[1727092799298,1.51091,2647.7,2647.5,3.58553]
[1727092799504,0.37771,2647.6,2647.5,3.58553]
[1727092800207,0.37771,2647.6,2647.5,3.2078]
[1727092800402,0.95,2647.6,2647.2,3.2078]
[1727092800607,0.95,2647.6,2647.5,0.37773]
[1727092800809,0.37772,2647.6,2647.2,4.1578]
[1727092801300,2.07748,2647.7,2647.2,3.2078]
[1727092801500,0.95,2647.5,2647.3,0.37775]
[1727092801702,0.95,2647.6,2647.4,0.37774]
[1727092801908,0.37774,2647.5,2647.3,0.37775]
[1727092802207,0.95,2647.6,2647.3,0.37775]